fUST/lending_fUST_20240918
["ID","MTS","AMOUNT","RATE_DAILY","PERIOD"]
[338440595,1726641047900,-1208.18,0.00019178,2]
[338440596,1726641047912,-500.0,0.00019178,2]
[338440597,1726641047921,-154.742121,0.00019178,2]
[338440598,1726641047930,-500.0,0.00019178,2]
[338440599,1726641047940,-165.325,0.00019178,2]
[338440600,1726641047949,-165.325,0.00019178,2]
[338440601,1726641047958,-165.325,0.00019178,2]
[338440602,1726641047967,-500.0,0.00019178,2]
[338440603,1726641047977,-2140.85,0.00019178,2]
[338440604,1726641047986,-1707.52,0.00019178,2]
[338440605,1726641047995,-1707.52,0.00019178,2]
[338440606,1726641048004,-1707.52,0.00019178,2]
[338440607,1726641048014,-1707.52,0.00019178,2]
[338440608,1726641048024,-1707.52,0.00019178,2]
[338440609,1726641048033,-500.0,0.00019178,2]
[338440610,1726641048042,-500.0,0.00019178,2]
[338440611,1726641048052,-1707.52,0.00019178,2]
[338440612,1726641048061,-165.325,0.00019178,2]
[338440613,1726641048071,-1707.52,0.00019178,2]
[338440614,1726641048081,-1707.52,0.00019178,2]
[338440615,1726641048090,-1707.52,0.00019178,2]
[338440616,1726641048099,-165.325,0.00019178,2]
[338440617,1726641048109,-1707.52,0.00019178,2]
[338440618,1726641048119,-1707.52,0.00019178,2]
[338440619,1726641048128,-165.325,0.00019178,2]
[338440620,1726641048138,-500.0,0.00019178,2]
[338440621,1726641048148,-1707.52,0.00019178,2]
[338440622,1726641048157,-1707.52,0.00019178,2]
[338440623,1726641048167,-1707.52,0.00019178,2]
[338440624,1726641048177,-1707.52,0.00019178,2]
[338440625,1726641048306,-1707.52,0.00019178,2]
[338440626,1726641048329,-500.0,0.00019178,2]
[338440627,1726641048340,-1707.52,0.00019178,2]
[338440628,1726641048349,-1707.52,0.00019178,2]
[338440629,1726641048358,-500.0,0.00019178,2]
[338440630,1726641048367,-1707.52,0.00019178,2]
[338440631,1726641048378,-759.28,0.00019178,2]
[338440632,1726641048388,-1707.52,0.00019178,2]
[338440633,1726641048400,-1707.52,0.00019178,2]
[338440634,1726641048409,-1707.52,0.00019178,2]
[338440635,1726641048418,-210.20224572,0.00019178,2]
[338440636,1726641048427,-1707.52,0.00019178,2]
[338440637,1726641048438,-1707.73420821,0.00019178,2]
[338440638,1726641048448,-2116.04,0.00019178,2]
[338440639,1726641048457,-755.53,0.00019178,2]
[338440640,1726641048468,-500.0,0.00019178,2]
[338440641,1726641048478,-500.0,0.00019178,2]
[338440642,1726641048487,-500.0,0.00019178,2]
[338440643,1726641048496,-500.0,0.00019178,2]
[338440644,1726641048505,-1544.4,0.00019178,2]
[338440645,1726641048515,-1295.93,0.00019178,2]
[338440646,1726641048524,-500.0,0.00019178,2]
[338440647,1726641048533,-500.0,0.00019178,2]
[338440648,1726641048542,-862.72,0.00019178,2]
[338440649,1726641048551,-500.0,0.00019178,2]
[338440650,1726641048563,-500.0,0.00019178,2]
[338440651,1726641048579,-151.0,0.00019178,2]
[338440652,1726641048588,-500.0,0.00019178,2]
[338440653,1726641048599,-500.0,0.00019178,2]
[338440654,1726641048608,-151.0,0.00019178,2]
[338440655,1726641048618,-500.0,0.00019178,2]
[338440656,1726641048628,-2988.56,0.00019178,2]
[338440657,1726641048637,-775.12,0.00019178,2]
[338440658,1726641048647,-500.0,0.00019178,2]
[338440659,1726641048656,-1400.25,0.00019178,2]
[338440660,1726641048665,-1581.35,0.00019178,2]
[338440661,1726641048675,-1017.71,0.00019178,2]
[338440662,1726641048685,-2314.06,0.00019178,2]
[338440663,1726641048694,-500.0,0.00019178,2]
[338440664,1726641048704,-2385.07,0.00019178,2]
[338440665,1726641048713,-500.0,0.00019178,2]
[338440666,1726641048723,-500.0,0.00019178,2]
[338440667,1726641048733,-500.0,0.00019178,2]
[338440668,1726641048742,-500.0,0.00019178,2]
[338440669,1726641048751,-1213.89,0.00019178,2]
[338440670,1726641048761,-1213.89,0.00019178,2]
[338440671,1726641048770,-1858.58,0.00019178,2]
[338440672,1726641048780,-1213.89,0.00019178,2]
[338440673,1726641048789,-500.0,0.00019178,2]
[338440674,1726641048798,-1213.89,0.00019178,2]
[338440675,1726641048810,-1213.89,0.00019178,2]
[338440676,1726641048819,-1213.89,0.00019178,2]
[338440677,1726641048828,-583.94,0.00019178,2]
[338440678,1726641048837,-1213.89,0.00019178,2]
[338440679,1726641048847,-1213.89,0.00019178,2]
[338440680,1726641048856,-1258.93,0.00019178,2]
[338440681,1726641048865,-1213.89,0.00019178,2]
[338440682,1726641048874,-1213.89,0.00019178,2]
[338440683,1726641048884,-1213.89,0.00019178,2]
[338440684,1726641048893,-500.0,0.00019178,2]
[338440685,1726641048902,-1213.89,0.00019178,2]
[338440686,1726641048911,-1213.89,0.00019178,2]
[338440687,1726641048920,-1213.89,0.00019178,2]
[338440688,1726641048929,-1213.89,0.00019178,2]
[338440689,1726641048938,-1213.89,0.00019178,2]
[338440690,1726641048948,-2641.74,0.00019178,2]
[338440691,1726641048957,-1213.89,0.00019178,2]
[338440692,1726641048967,-1090.16,0.00019178,2]
[338440693,1726641048975,-1213.89,0.00019178,2]
[338440694,1726641048984,-1213.89,0.00019178,2]
[338440695,1726641048994,-1213.89,0.00019178,2]
[338440696,1726641049003,-1213.89,0.00019178,2]
[338440697,1726641049012,-1213.89,0.00019178,2]
[338440698,1726641049021,-1213.89,0.00019178,2]
[338440699,1726641049031,-1213.92239255,0.00019178,2]
[338440700,1726641049040,-218.33523406,0.00019178,2]
[338440701,1726641049049,-500.0,0.00019178,2]
[338440702,1726641049059,-2587.81,0.00019178,2]
[338440703,1726641049068,-500.0,0.00019178,2]
[338440704,1726641049078,-1387.62,0.00019178,2]
[338440705,1726641049088,-500.0,0.00019178,2]
[338440706,1726641049097,-500.0,0.00019178,2]
[338440707,1726641049107,-775.1,0.00019178,2]
[338440708,1726641049116,-670.55,0.00019178,2]
[338440709,1726641049125,-500.0,0.00019178,2]
[338440710,1726641049135,-500.0,0.00019178,2]
[338440711,1726641049145,-152.043162,0.00019178,2]
[338440712,1726641049154,-2566.11,0.00019178,2]
[338440713,1726641049163,-152.043162,0.00019178,2]
[338440714,1726641049172,-152.043162,0.00019178,2]
[338440715,1726641049182,-500.0,0.00019178,2]
[338440716,1726641049192,-152.043162,0.00019178,2]
[338440717,1726641049201,-579.76,0.00019178,2]
[338440718,1726641049210,-500.0,0.00019178,2]
[338440719,1726641049219,-589.93,0.00019178,2]
[338440720,1726641049229,-504.1266409,0.00019178,2]
[338440721,1726641049238,-152.043162,0.00019178,2]
[338440722,1726641049247,-500.0,0.00019178,2]
[338440723,1726641049256,-152.043162,0.00019178,2]
[338440724,1726641049265,-152.043162,0.00019178,2]
[338440725,1726641049274,-152.043162,0.00019178,2]
[338440726,1726641049283,-510.2681691,0.00019178,2]
[338440727,1726641049295,-1023.98,0.00019178,2]
[338440728,1726641049304,-702.2,0.00019178,2]
[338440729,1726641049315,-1426.45,0.00019178,2]
[338440730,1726641049324,-539.04281045,0.00019178,2]
[338440731,1726641049333,-500.0,0.00019178,2]
[338440732,1726641049343,-500.0,0.00019178,2]
[338440733,1726641049352,-500.0,0.00019178,2]
[338440734,1726641049361,-500.0,0.00019178,2]
[338440735,1726641049371,-500.0,0.00019178,2]
[338440736,1726641049380,-602.68751227,0.00019178,2]
[338440737,1726641049393,-1738.66,0.00019178,2]
[338440738,1726641049404,-500.0,0.00019178,2]
[338440739,1726641049413,-1023.49,0.00019178,2]
[338440740,1726641049422,-500.0,0.00019178,2]
[338440741,1726641049432,-2145.2,0.00019178,2]
[338440742,1726641049441,-500.0,0.00019178,2]
[338440743,1726641049450,-5000.0,0.00019178,2]
[338440744,1726641049459,-5084.780151,0.00019178,2]
[338440745,1726641049468,-500.0,0.00019178,2]
[338440746,1726641049478,-1468.78,0.00019178,2]
[338440747,1726641049487,-580.09,0.00019178,2]
[338440748,1726641049497,-2210.56,0.00019178,2]
[338440749,1726641049507,-500.0,0.00019178,2]
[338440750,1726641049517,-151.0,0.00019178,2]
[338440751,1726641049526,-151.0,0.00019178,2]
[338440752,1726641049536,-242.552657,0.00019178,2]
[338440753,1726641049545,-500.0,0.00019178,2]
[338440754,1726641049555,-855.96,0.00019178,2]
[338440755,1726641049565,-846.07,0.00019178,2]
[338440756,1726641049575,-500.0,0.00019178,2]
[338440757,1726641049584,-500.0,0.00019178,2]
[338440758,1726641049593,-1063.76,0.00019178,2]
[338440759,1726641049602,-500.0,0.00019178,2]
[338440760,1726641049612,-638.07343698,0.00019178,2]
[338440761,1726641049621,-500.0,0.00019178,2]
[338440762,1726641049630,-509.02148522,0.00019178,2]
[338440763,1726641049639,-500.0,0.00019178,2]
[338440764,1726641049648,-500.0,0.00019178,2]
[338440765,1726641049657,-500.0,0.00019178,2]
[338440766,1726641049666,-500.0,0.00019178,2]
[338440767,1726641049675,-500.0,0.00019178,2]
[338440768,1726641049685,-500.0,0.00019178,2]
[338440769,1726641049694,-2551.82,0.00019178,2]
[338440770,1726641049703,-3428.87,0.00019178,2]
[338440771,1726641049713,-922.64,0.00019178,2]
[338440772,1726641049723,-2511.81,0.00019178,2]
[338440773,1726641049732,-646.59,0.00019178,2]
[338440774,1726641049743,-10328.85,0.00019178,2]
[338440775,1726641049753,-705.18,0.00019178,2]
[338440776,1726641049763,-500.0,0.00019178,2]
[338440777,1726641049772,-500.0,0.00019178,2]
[338440778,1726641049781,-502.76714565,0.00019178,2]
[338440779,1726641049790,-689.54,0.00019178,2]
[338440780,1726641049800,-794.54,0.00019178,2]
[338440781,1726641049810,-500.0,0.00019178,2]
[338440782,1726641049819,-500.0,0.00019178,2]
[338440783,1726641049828,-500.0,0.00019178,2]
[338440784,1726641049837,-500.0,0.00019178,2]
[338440785,1726641049847,-508.16464804,0.00019178,2]
[338440786,1726641049856,-3343.52,0.00019178,2]
[338440787,1726641049866,-500.0,0.00019178,2]
[338440788,1726641049875,-830.72,0.00019178,2]
[338440789,1726641049884,-500.0,0.00019178,2]
[338440790,1726641049894,-501.94453394,0.00019178,2]
[338440791,1726641049903,-500.0,0.00019178,2]
[338440792,1726641049912,-1069.89,0.00019178,2]
[338440793,1726641049921,-267.80655226,0.00019178,2]
[338440794,1726641049930,-500.0,0.00019178,2]
[338440795,1726641049940,-500.0,0.00019178,2]
[338440796,1726641049949,-500.0,0.00019178,2]
[338440797,1726641049958,-500.0,0.00019178,2]
[338440798,1726641049967,-2121.29,0.00019178,2]
[338440799,1726641049977,-2121.29,0.00019178,2]
[338440800,1726641049987,-2121.29,0.00019178,2]
[338440801,1726641049996,-2121.29,0.00019178,2]
[338440802,1726641050006,-500.0,0.00019178,2]
[338440803,1726641050015,-500.0,0.00019178,2]
[338440804,1726641050024,-500.0,0.00019178,2]
[338440805,1726641050033,-500.0,0.00019178,2]
[338440806,1726641050042,-527.3,0.00019178,2]
[338440807,1726641050052,-1737.26,0.00019178,2]
[338440808,1726641050061,-1316.6,0.00019178,2]
[338440809,1726641050070,-12411.55,0.00019178,2]
[338440810,1726641050079,-630.61229126,0.00019178,2]
[338440811,1726641050090,-523.06,0.00019178,2]
[338440812,1726641050099,-500.0,0.00019178,2]
[338440813,1726641050108,-170.879843,0.00019178,2]
[338440814,1726641050118,-2121.29,0.00019178,2]
[338440815,1726641050128,-170.879843,0.00019178,2]
[338440816,1726641050137,-2121.29,0.00019178,2]
[338440817,1726641050146,-2121.29,0.00019178,2]
[338440818,1726641050156,-170.879843,0.00019178,2]
[338440819,1726641050166,-2223.46,0.00019178,2]
[338440820,1726641050175,-2121.29,0.00019178,2]
[338440821,1726641050185,-2121.29,0.00019178,2]
[338440822,1726641050194,-2121.29,0.00019178,2]
[338440823,1726641050204,-2121.29,0.00019178,2]
[338440824,1726641050213,-500.0,0.00019178,2]
[338440825,1726641050223,-500.0,0.00019178,2]
[338440826,1726641050232,-1040.12,0.00019178,2]
[338440827,1726641050241,-2121.29,0.00019178,2]
[338440828,1726641050250,-2121.29,0.00019178,2]
[338440829,1726641050259,-1476.4,0.00019178,2]
[338440830,1726641050268,-500.0,0.00019178,2]
[338440831,1726641050279,-2121.29,0.00019178,2]
[338440832,1726641050290,-2121.29,0.00019178,2]
[338440833,1726641050300,-2121.29,0.00019178,2]
[338440834,1726641050310,-2121.29,0.00019178,2]
[338440835,1726641050319,-2121.29,0.00019178,2]
[338440836,1726641050328,-2121.29,0.00019178,2]
[338440837,1726641050337,-2121.29,0.00019178,2]
[338440838,1726641050485,-2121.29,0.00019178,2]
[338440839,1726641050495,-2121.29,0.00019178,2]
[338440840,1726641050504,-2121.29,0.00019178,2]
[338440841,1726641050513,-2121.38618046,0.00019178,2]
[338440842,1726641050522,-913.36,0.00019178,2]
[338440843,1726641050532,-500.0,0.00019178,2]
[338440844,1726641050541,-500.0,0.00019178,2]
[338440845,1726641050550,-4900.93,0.00019178,2]
[338440846,1726641050560,-1430.128825,0.00019178,2]
[338440847,1726641050569,-500.0,0.00019178,2]
[338440848,1726641050579,-1430.128825,0.00019178,2]
[338440849,1726641050588,-1430.128825,0.00019178,2]
[338440850,1726641050598,-170.879843,0.00019178,2]
[338440851,1726641050607,-1430.128825,0.00019178,2]
[338440852,1726641050616,-170.879843,0.00019178,2]
[338440853,1726641050626,-1430.128825,0.00019178,2]
[338440854,1726641050635,-500.0,0.00019178,2]
[338440855,1726641050645,-500.0,0.00019178,2]
[338440856,1726641050654,-500.0,0.00019178,2]
[338440857,1726641050663,-5330.16,0.00019178,2]
[338440858,1726641050673,-1430.128825,0.00019178,2]
[338440859,1726641050682,-170.879843,0.00019178,2]
[338440860,1726641050691,-10405.41,0.00019178,2]
[338440861,1726641050701,-170.879843,0.00019178,2]
[338440862,1726641050711,-1430.128825,0.00019178,2]
[338440863,1726641050720,-500.0,0.00019178,2]
[338440864,1726641050730,-170.879843,0.00019178,2]
[338440865,1726641050740,-500.0,0.00019178,2]
[338440866,1726641050750,-1430.128825,0.00019178,2]
[338440867,1726641050759,-170.879843,0.00019178,2]
[338440868,1726641050769,-1430.128825,0.00019178,2]
[338440869,1726641050779,-170.879843,0.00019178,2]
[338440870,1726641050788,-500.0,0.00019178,2]
[338440871,1726641050797,-1430.128825,0.00019178,2]
[338440872,1726641050806,-2026.74,0.00019178,2]
[338440873,1726641050816,-500.0,0.00019178,2]
[338440874,1726641050826,-653.01,0.00019178,2]
[338440875,1726641050835,-500.0,0.00019178,2]
[338440876,1726641050845,-500.0,0.00019178,2]
[338440877,1726641050854,-604.25,0.00019178,2]
[338440878,1726641050864,-1026.26,0.00019178,2]
[338440879,1726641050873,-1254.09,0.00019178,2]
[338440880,1726641050882,-929.97,0.00019178,2]
[338440881,1726641050891,-500.0,0.00019178,2]
[338440882,1726641050901,-3241.23,0.00019178,2]
[338440883,1726641050910,-881.47,0.00019178,2]
[338440884,1726641050919,-500.0,0.00019178,2]
[338440885,1726641050929,-500.0,0.00019178,2]
[338440886,1726641050938,-1579.02,0.00019178,2]
[338440887,1726641050948,-500.0,0.00019178,2]
[338440888,1726641050957,-500.0,0.00019178,2]
[338440889,1726641050966,-500.0,0.00019178,2]
[338440890,1726641050976,-500.0,0.00019178,2]
[338440891,1726641050985,-500.0,0.00019178,2]
[338440892,1726641050994,-724.4,0.00019178,2]
[338440893,1726641051004,-500.0,0.00019178,2]
[338440894,1726641051013,-500.0,0.00019178,2]
[338440895,1726641051022,-500.0,0.00019178,2]
[338440896,1726641051032,-500.0,0.00019178,2]
[338440897,1726641051041,-500.0,0.00019178,2]
[338440898,1726641051051,-500.0,0.00019178,2]
[338440899,1726641051060,-789.68,0.00019178,2]
[338440900,1726641051069,-1179.8,0.00019178,2]
[338440901,1726641051079,-500.0,0.00019178,2]
[338440902,1726641051088,-500.0,0.00019178,2]
[338440903,1726641051097,-653.65,0.00019178,2]
[338440904,1726641051106,-956.21,0.00019178,2]
[338440905,1726641051116,-1645.83,0.00019178,2]
[338440906,1726641051126,-500.0,0.00019178,2]
[338440907,1726641051135,-500.0,0.00019178,2]
[338440908,1726641051145,-500.0,0.00019178,2]
[338440909,1726641051155,-500.0,0.00019178,2]
[338440910,1726641051164,-844.84,0.00019178,2]
[338440911,1726641051173,-435.42923858,0.00019178,2]
[338440912,1726641051183,-2705.85,0.00019178,2]
[338440913,1726641051193,-2583.13,0.00019178,2]
[338440914,1726641051202,-6050.51,0.00019178,2]
[338440915,1726641051212,-2643.85,0.00019178,2]
[338440916,1726641051221,-1635.02,0.00019178,2]
[338440917,1726641051230,-500.0,0.00019178,2]
[338440918,1726641051239,-500.0,0.00019178,2]
[338440919,1726641051249,-803.81,0.00019178,2]
[338440920,1726641051259,-853.76,0.00019178,2]
[338440921,1726641051268,-1168.07,0.00019178,2]
[338440922,1726641051277,-500.0,0.00019178,2]
[338440923,1726641051288,-500.0,0.00019178,2]
[338440924,1726641051298,-1583.15,0.00019178,2]
[338440925,1726641051307,-500.0,0.00019178,2]
[338440926,1726641051317,-1142.18,0.00019178,2]
[338440927,1726641051327,-797.79,0.00019178,2]
[338440928,1726641051336,-262.88074097,0.00019178,2]
[338440929,1726641051345,-500.0,0.00019178,2]
[338440930,1726641051355,-500.53193197,0.00019178,2]
[338440931,1726641051364,-1707.57,0.00019178,2]
[338440932,1726641051374,-500.0,0.00019178,2]
[338440933,1726641051383,-178.345866,0.00019178,2]
[338440934,1726641051395,-500.0,0.00019178,2]
[338440935,1726641051405,-909.73,0.00019178,2]
[338440936,1726641051414,-178.345866,0.00019178,2]
[338440937,1726641051423,-1896.54,0.00019178,2]
[338440938,1726641051432,-178.345866,0.00019178,2]
[338440939,1726641051443,-598.82,0.00019178,2]
[338440940,1726641051452,-178.345866,0.00019178,2]
[338440941,1726641051462,-500.0,0.00019178,2]
[338440942,1726641051471,-178.345866,0.00019178,2]
[338440943,1726641051481,-500.0,0.00019178,2]
[338440944,1726641051491,-500.0,0.00019178,2]
[338440945,1726641051500,-500.0,0.00019178,2]
[338440946,1726641051510,-2571.5,0.00019178,2]
[338440947,1726641051519,-500.0,0.00019178,2]
[338440948,1726641051528,-500.0,0.00019178,2]
[338440949,1726641051538,-2690.62,0.00019178,2]
[338440950,1726641051547,-10340.94,0.00019178,2]
[338440951,1726641051557,-382.56079052,0.00019178,2]
[338440952,1726641051567,-500.0,0.00019178,2]
[338440953,1726641051576,-178.345866,0.00019178,2]
[338440954,1726641051585,-1122.2,0.00019178,2]
[338440955,1726641051594,-665.11,0.00019178,2]
[338440956,1726641051604,-178.345866,0.00019178,2]
[338440957,1726641051613,-655.21,0.00019178,2]
[338440958,1726641051622,-178.345866,0.00019178,2]
[338440959,1726641051631,-178.345866,0.00019178,2]
[338440960,1726641051641,-500.0,0.00019178,2]
[338440961,1726641051650,-511.27479549,0.00019178,2]
[338440962,1726641051660,-178.345866,0.00019178,2]
[338440963,1726641051670,-500.0,0.00019178,2]
[338440964,1726641051679,-500.0,0.00019178,2]
[338440965,1726641051689,-500.0,0.00019178,2]
[338440966,1726641051698,-500.0,0.00019178,2]
[338440967,1726641051708,-463.91101565,0.00019178,2]
[338440968,1726641051718,-2547.64,0.00019178,2]
[338440969,1726641051727,-162.160517,0.00019178,2]
[338440970,1726641051737,-1312.16,0.00019178,2]
[338440971,1726641051747,-2338.7,0.00019178,2]
[338440972,1726641051757,-162.160517,0.00019178,2]
[338440973,1726641051767,-500.0,0.00019178,2]
[338440974,1726641051776,-162.160517,0.00019178,2]
[338440975,1726641051786,-743.37,0.00019178,2]
[338440976,1726641051796,-162.160517,0.00019178,2]
[338440977,1726641051806,-500.0,0.00019178,2]
[338440978,1726641051816,-162.160517,0.00019178,2]
[338440979,1726641051825,-570.43579835,0.00019178,2]
[338440980,1726641051834,-500.0,0.00019178,2]
[338440981,1726641051844,-2229.25,0.00019178,2]
[338440982,1726641051853,-805.17,0.00019178,2]
[338440983,1726641051863,-1830.33,0.00019178,2]
[338440984,1726641051873,-500.0,0.00019178,2]
[338440985,1726641051882,-537.23,0.00019178,2]
[338440986,1726641051892,-162.160517,0.00019178,2]
[338440987,1726641051902,-162.160517,0.00019178,2]
[338440988,1726641051912,-500.0,0.00019178,2]
[338440989,1726641051921,-162.160517,0.00019178,2]
[338440990,1726641051931,-162.160517,0.00019178,2]
[338440991,1726641051941,-162.160517,0.00019178,2]
[338440992,1726641051951,-500.0,0.00019178,2]
[338440993,1726641051961,-500.0,0.00019178,2]
[338440994,1726641051971,-500.0,0.00019178,2]
[338440995,1726641051981,-2027.24,0.00019178,2]
[338440996,1726641051991,-500.0,0.00019178,2]
[338440997,1726641052001,-701.28,0.00019178,2]
[338440998,1726641052010,-4882.15,0.00019178,2]
[338440999,1726641052020,-500.0,0.00019178,2]
[338441000,1726641052030,-500.0,0.00019178,2]
[338441001,1726641052039,-500.0,0.00019178,2]
[338441002,1726641052049,-500.0,0.00019178,2]
[338441003,1726641052059,-2771.79,0.00019178,2]
[338441004,1726641052072,-500.0,0.00019178,2]
[338441005,1726641052082,-500.0,0.00019178,2]
[338441006,1726641052091,-20109.82,0.00019178,2]
[338441007,1726641052101,-500.0,0.00019178,2]
[338441008,1726641052111,-500.0,0.00019178,2]
[338441009,1726641052121,-500.0,0.00019178,2]
[338441010,1726641052131,-500.0,0.00019178,2]
[338441011,1726641052141,-1267.73,0.00019178,2]
[338441012,1726641052150,-500.0,0.00019178,2]
[338441013,1726641052160,-283.159142,0.00019178,2]
[338441014,1726641052170,-500.0,0.00019178,2]
[338441015,1726641052180,-500.0,0.00019178,2]
[338441016,1726641052189,-500.0,0.00019178,2]
[338441017,1726641052198,-500.0,0.00019178,2]
[338441018,1726641052208,-1782.56,0.00019178,2]
[338441019,1726641052217,-4575.52,0.00019178,2]
[338441020,1726641052227,-870.326526,0.00019178,2]
[338441021,1726641052236,-870.326526,0.00019178,2]
[338441022,1726641052245,-870.326526,0.00019178,2]
[338441023,1726641052254,-870.326526,0.00019178,2]
[338441024,1726641052263,-870.326526,0.00019178,2]
[338441025,1726641052273,-500.0,0.00019178,2]
[338441026,1726641052282,-500.0,0.00019178,2]
[338441027,1726641052294,-2592.62,0.00019178,2]
[338441028,1726641052303,-500.0,0.00019178,2]
[338441029,1726641052317,-500.0,0.00019178,2]
[338441030,1726641052330,-2478.98,0.00019178,2]
[338441031,1726641052340,-2520.23,0.00019178,2]
[338441032,1726641052348,-1441.31,0.00019178,2]
[338441033,1726641052481,-696.62,0.00019178,2]
[338441034,1726641052491,-2129.46,0.00019178,2]
[338441035,1726641052501,-870.326526,0.00019178,2]
[338441036,1726641052511,-500.0,0.00019178,2]
[338441037,1726641052520,-870.326526,0.00019178,2]
[338441038,1726641052530,-870.326526,0.00019178,2]
[338441039,1726641052539,-790.87,0.00019178,2]
[338441040,1726641052549,-500.0,0.00019178,2]
[338441041,1726641052559,-870.326526,0.00019178,2]
[338441042,1726641052569,-1783.01,0.00019178,2]
[338441043,1726641052578,-870.326526,0.00019178,2]
[338441044,1726641052588,-500.0,0.00019178,2]
[338441045,1726641052597,-391.88589512,0.00019178,2]
[338441046,1726641052607,-1014.67,0.00019178,2]
[338441047,1726641052616,-734.12,0.00019178,2]
[338441048,1726641052625,-500.0,0.00019178,2]
[338441049,1726641052635,-526.12118235,0.00019178,2]
[338441050,1726641052645,-829.37,0.00019178,2]
[338441051,1726641052654,-155.562212,0.00019178,2]
[338441052,1726641052663,-765.73,0.00019178,2]
[338441053,1726641052673,-500.0,0.00019178,2]
[338441054,1726641052682,-505.85601518,0.00019178,2]
[338441055,1726641052692,-2350.51,0.00019178,2]
[338441056,1726641052701,-4692.27,0.00019178,2]
[338441057,1726641052711,-500.0,0.00019178,2]
[338441058,1726641052720,-778.06,0.00019178,2]
[338441059,1726641052730,-500.0,0.00019178,2]
[338441060,1726641052739,-500.0,0.00019178,2]
[338441061,1726641052749,-979.58,0.00019178,2]
[338441062,1726641052758,-500.0,0.00019178,2]
[338441063,1726641052768,-567.1,0.00019178,2]
[338441064,1726641052777,-500.0,0.00019178,2]
[338441065,1726641052787,-2316.63,0.00019178,2]
[338441066,1726641052796,-500.0,0.00019178,2]
[338441067,1726641052805,-1350.41,0.00019178,2]
[338441068,1726641052816,-500.0,0.00019178,2]
[338441069,1726641052825,-500.0,0.00019178,2]
[338441070,1726641052835,-544.05027427,0.00019178,2]
[338441071,1726641052844,-500.0,0.00019178,2]
[338441072,1726641052853,-2029.26,0.00019178,2]
[338441073,1726641052862,-500.0,0.00019178,2]
[338441074,1726641052871,-176.78123077,0.00019178,2]
[338441075,1726641052880,-2084.84,0.00019178,2]
[338441076,1726641052890,-500.0,0.00019178,2]
[338441077,1726641052899,-2412.55,0.00019178,2]
[338441078,1726641052909,-1468.42,0.00019178,2]
[338441079,1726641052918,-500.0,0.00019178,2]
[338441080,1726641052927,-5397.41,0.00019178,2]
[338441081,1726641052937,-2547.69,0.00019178,2]
[338441082,1726641052946,-782.26,0.00019178,2]
[338441083,1726641052955,-500.0,0.00019178,2]
[338441084,1726641052965,-500.0,0.00019178,2]
[338441085,1726641052974,-151.0,0.00019178,2]
[338441086,1726641052984,-151.0,0.00019178,2]
[338441087,1726641052993,-500.0,0.00019178,2]
[338441088,1726641053002,-181.02839688,0.00019178,2]
[338441089,1726641053012,-518.37211877,0.00019178,2]
[338441090,1726641053022,-500.0,0.00019178,2]
[338441091,1726641053031,-500.0,0.00019178,2]
[338441092,1726641053041,-500.0,0.00019178,2]
[338441093,1726641053050,-500.0,0.00019178,2]
[338441094,1726641053060,-532.45933118,0.00019178,2]